[Event "Titled Tuesday Blitz February 22 Early 2022"]
[White "Paravyan, David"]
[Black "Kozak, Adam"]
[WhiteFideId "4194985"]
[BlackFideId "753246"]
[WhiteElo "2569"]
[BlackElo "2459"]
[Result "0-1"]
[Round "07"]
[TimeControl "180+1"]
[Date "2022.02.22"]
[WhiteClock "0:00:02"]
[BlackClock "0:00:10"]

1. e4 {[%clk 0:03:00]}  c5 {[%clk 0:02:59]} 2. Nf3 {[%clk 0:03:00]}  a6 {[%clk 0:02:59]} 3. g3 {[%clk 0:02:59]}  b5 {[%clk 0:02:58]} 4. d4 {[%clk 0:02:57]}  cxd4 {[%clk 0:02:58]} 5. Nxd4 {[%clk 0:02:58]}  Bb7 {[%clk 0:02:58]} 6. Bg2 {[%clk 0:02:59]}  Nc6 {[%clk 0:02:57]} 7. O-O {[%clk 0:02:58]}  Rc8 {[%clk 0:02:47]} 8. a4 {[%clk 0:02:54]}  b4 {[%clk 0:02:39]} 9. Be3 {[%clk 0:02:52]}  Qc7 {[%clk 0:02:35]} 10. Nd2 {[%clk 0:02:51]}  Nf6 {[%clk 0:02:29]} 11. Rc1 {[%clk 0:02:47]}  Nxd4 {[%clk 0:02:25]} 12. Bxd4 {[%clk 0:02:47]}  e5 {[%clk 0:02:26]} 13. Be3 {[%clk 0:02:47]}  Bc5 {[%clk 0:02:25]} 14. Bg5 {[%clk 0:02:43]}  Qc6 {[%clk 0:02:23]} 15. Nc4 {[%clk 0:02:39]}  Qe6 {[%clk 0:02:18]} 16. Bxf6 {[%clk 0:02:10]}  Qxf6 {[%clk 0:02:13]} 17. Qd3 {[%clk 0:02:08]}  O-O {[%clk 0:02:10]} 18. Ne3 {[%clk 0:02:08]}  Bd4 {[%clk 0:02:05]} 19. Nf5 {[%clk 0:01:57]}  Bxb2 {[%clk 0:01:58]} 20. Rb1 {[%clk 0:01:56]}  Bc3 {[%clk 0:01:45]} 21. Qxd7 {[%clk 0:01:55]}  Bc6 {[%clk 0:01:43]} 22. Qa7 {[%clk 0:01:29]}  Ra8 {[%clk 0:01:35]} 23. Qc5 {[%clk 0:01:04]}  Bxa4 {[%clk 0:01:30]} 24. Ne7+ {[%clk 0:01:04]}  Kh8 {[%clk 0:01:30]} 25. Nd5 {[%clk 0:01:05]}  Rfc8 {[%clk 0:01:21]} 26. Qa5 {[%clk 0:00:45]}  Qc6 {[%clk 0:01:19]} 27. Nxc3 {[%clk 0:00:29]}  bxc3 {[%clk 0:01:11]} 28. Rb6 {[%clk 0:00:17]}  Qe8 {[%clk 0:01:11]} 29. Rc1 {[%clk 0:00:13]}  Bb5 {[%clk 0:00:54]} 30. Bf1 {[%clk 0:00:13]}  Bxf1 {[%clk 0:00:51]} 31. Kxf1 {[%clk 0:00:13]}  Qd7 {[%clk 0:00:47]} 32. Rxa6 {[%clk 0:00:10]}  Rab8 {[%clk 0:00:47]} 33. Kg2 {[%clk 0:00:09]}  Qd2 {[%clk 0:00:45]} 34. Qa3 {[%clk 0:00:09]}  Qe2 {[%clk 0:00:44]} 35. Ra4 {[%clk 0:00:08]}  h6 {[%clk 0:00:41]} 36. Rb4 {[%clk 0:00:09]}  Qd2 {[%clk 0:00:37]} 37. Rxb8 {[%clk 0:00:08]}  Rxb8 {[%clk 0:00:38]} 38. h4 {[%clk 0:00:06]}  h5 {[%clk 0:00:35]} 39. Qa1 {[%clk 0:00:05]}  g6 {[%clk 0:00:32]} 40. Rd1 {[%clk 0:00:05]}  Qxc2 {[%clk 0:00:31]} 41. Rc1 {[%clk 0:00:05]}  Qxe4+ {[%clk 0:00:32]} 42. Kh2 {[%clk 0:00:05]}  c2 {[%clk 0:00:31]} 43. Qc3 {[%clk 0:00:06]}  Re8 {[%clk 0:00:09]} 44. Qxc2 {[%clk 0:00:06]}  Qd5 {[%clk 0:00:08]} 45. Re1 {[%clk 0:00:05]}  Qe6 {[%clk 0:00:08]} 46. Qb2 {[%clk 0:00:06]}  Kg8 {[%clk 0:00:07]} 47. Re3 {[%clk 0:00:06]}  Qf6 {[%clk 0:00:08]} 48. Qe2 {[%clk 0:00:07]}  Qf5 {[%clk 0:00:06]} 49. Re4 {[%clk 0:00:06]}  Qf6 {[%clk 0:00:06]} 50. f4 {[%clk 0:00:06]}  Re6 {[%clk 0:00:04]} 51. fxe5 {[%clk 0:00:05]}  Qe7 {[%clk 0:00:04]} 52. Re3 {[%clk 0:00:06]}  Rb6 {[%clk 0:00:04]} 53. Qc4 {[%clk 0:00:06]}  Re6 {[%clk 0:00:03]} 54. Qf4 {[%clk 0:00:05]}  Kg7 {[%clk 0:00:04]} 55. Re2 {[%clk 0:00:05]}  Rc6 {[%clk 0:00:03]} 56. Rf2 {[%clk 0:00:05]}  Re6 {[%clk 0:00:04]} 57. Re2 {[%clk 0:00:06]}  Kg8 {[%clk 0:00:04]} 58. Kh3 {[%clk 0:00:06]}  Qd7 {[%clk 0:00:04]} 59. Kh2 {[%clk 0:00:06]}  Re8 {[%clk 0:00:05]} 60. Rf2 {[%clk 0:00:06]}  Qe6 {[%clk 0:00:05]} 61. Rf3 {[%clk 0:00:07]}  Rc8 {[%clk 0:00:05]} 62. Rf2 {[%clk 0:00:07]}  Rd8 {[%clk 0:00:05]} 63. Qf6 {[%clk 0:00:07]}  Qxf6 {[%clk 0:00:04]} 64. exf6 {[%clk 0:00:08]}  Rd6 {[%clk 0:00:04]} 65. Kh3 {[%clk 0:00:08]}  Kf8 {[%clk 0:00:05]} 66. Rf4 {[%clk 0:00:09]}  Ke8 {[%clk 0:00:05]} 67. Re4+ {[%clk 0:00:09]}  Kf8 {[%clk 0:00:04]} 68. Rf4 {[%clk 0:00:10]}  Re6 {[%clk 0:00:05]} 69. g4 {[%clk 0:00:09]}  Re3+ {[%clk 0:00:04]} 70. Kg2 {[%clk 0:00:09]}  hxg4 {[%clk 0:00:04]} 71. Rxg4 {[%clk 0:00:10]}  Re6 {[%clk 0:00:04]} 72. Rg5 {[%clk 0:00:08]}  Rxf6 {[%clk 0:00:04]} 73. h5 {[%clk 0:00:08]}  Kg7 {[%clk 0:00:04]} 74. Kh3 {[%clk 0:00:04]}  Kh6 {[%clk 0:00:04]} 75. Rc5 {[%clk 0:00:02]}  g5 {[%clk 0:00:04]} 76. Kg4 {[%clk 0:00:01]}  Rf4+ {[%clk 0:00:05]} 77. Kg3 {[%clk 0:00:02]}  Kxh5 {[%clk 0:00:05]} 78. Rc8 {[%clk 0:00:03]}  Kg6 {[%clk 0:00:06]} 79. Rg8+ {[%clk 0:00:02]}  Kh6 {[%clk 0:00:06]} 80. Ra8 {[%clk 0:00:03]}  f6 {[%clk 0:00:06]} 81. Rh8+ {[%clk 0:00:04]}  Kg6 {[%clk 0:00:06]} 82. Rg8+ {[%clk 0:00:04]}  Kf5 {[%clk 0:00:07]} 83. Ra8 {[%clk 0:00:05]}  Rg4+ {[%clk 0:00:07]} 84. Kf3 {[%clk 0:00:05]}  Re4 {[%clk 0:00:08]} 85. Ra5+ {[%clk 0:00:06]}  Re5 {[%clk 0:00:09]} 86. Ra4 {[%clk 0:00:07]}  g4+ {[%clk 0:00:08]} 87. Kg3 {[%clk 0:00:02]}  Re3+ {[%clk 0:00:08]} 88. Kf2 {[%clk 0:00:02]}  Rf3+ {[%clk 0:00:08]} 89. Kg2 {[%clk 0:00:03]}  Kg5 {[%clk 0:00:09]} 90. Ra5+ {[%clk 0:00:02]}  f5 {[%clk 0:00:09]} 91. Ra2 {[%clk 0:00:03]}  Re3 {[%clk 0:00:09]} 92. Rb2 {[%clk 0:00:04]}  Kf4 {[%clk 0:00:09]} 93. Rb4+ {[%clk 0:00:04]}  Re4 {[%clk 0:00:10]} 94. Rb2 {[%clk 0:00:05]}  g3 {[%clk 0:00:09]} 95. Rc2 {[%clk 0:00:01]}  Kg4 {[%clk 0:00:09]} 96. Rb2 {[%clk 0:00:02]}  f4 {[%clk 0:00:09]} 97. Kf1 {[%clk 0:00:03]}  f3 {[%clk 0:00:09]} 98. Rb8 {[%clk 0:00:02]}  g2+ {[%clk 0:00:10]} 0-1


[Site "https://www.chess.com"]

[Event "Titled Tuesday Blitz February 22 Early 2022"]
[White "Pesotskiy, Mikhail"]
[Black "Serikbay, Assel"]
[WhiteFideId "34164453"]
[BlackFideId "13706799"]
[WhiteElo "2010"]
[BlackElo "2130"]
[Result "0-1"]
[Round "07"]
[TimeControl "180+1"]
[Date "2022.02.22"]
[WhiteClock "0:00:56"]
[BlackClock "0:00:18"]

1. d4 {[%clk 0:02:59]}  Nf6 {[%clk 0:02:59]} 2. c4 {[%clk 0:03:00]}  g6 {[%clk 0:02:58]} 3. Nc3 {[%clk 0:03:00]}  d5 {[%clk 0:02:58]} 4. Bg5 {[%clk 0:03:00]}  Ne4 {[%clk 0:02:52]} 5. Nxe4 {[%clk 0:02:58]}  dxe4 {[%clk 0:02:51]} 6. Qd2 {[%clk 0:02:59]}  Bg7 {[%clk 0:02:40]} 7. e3 {[%clk 0:02:57]}  h6 {[%clk 0:02:37]} 8. Bh4 {[%clk 0:02:53]}  g5 {[%clk 0:02:33]} 9. Bg3 {[%clk 0:02:44]}  c5 {[%clk 0:02:33]} 10. d5 {[%clk 0:02:43]}  Qb6 {[%clk 0:02:29]} 11. Rb1 {[%clk 0:02:39]}  Nd7 {[%clk 0:02:28]} 12. Ne2 {[%clk 0:02:31]}  Ne5 {[%clk 0:02:22]} 13. Nc3 {[%clk 0:02:31]}  Bf5 {[%clk 0:02:16]} 14. Be2 {[%clk 0:02:28]}  Bg6 {[%clk 0:02:11]} 15. O-O {[%clk 0:02:27]}  f5 {[%clk 0:02:09]} 16. Rfd1 {[%clk 0:02:11]}  O-O {[%clk 0:02:04]} 17. d6 {[%clk 0:02:10]}  Qxd6 {[%clk 0:01:57]} 18. Qxd6 {[%clk 0:02:11]}  exd6 {[%clk 0:01:56]} 19. Rxd6 {[%clk 0:02:12]}  f4 {[%clk 0:01:47]} 20. exf4 {[%clk 0:02:13]}  gxf4 {[%clk 0:01:47]} 21. Bh4 {[%clk 0:02:14]}  f3 {[%clk 0:01:33]} 22. Bf1 {[%clk 0:01:58]}  e3 {[%clk 0:01:29]} 23. Re1 {[%clk 0:01:47]}  e2 {[%clk 0:01:26]} 24. Nxe2 {[%clk 0:01:44]}  fxe2 {[%clk 0:01:26]} 25. Bxe2 {[%clk 0:01:44]}  Kh7 {[%clk 0:01:23]} 26. b3 {[%clk 0:01:43]}  Rae8 {[%clk 0:01:22]} 27. f3 {[%clk 0:01:30]}  Nc6 {[%clk 0:01:17]} 28. Bf2 {[%clk 0:01:29]}  Nd4 {[%clk 0:01:06]} 29. Kf1 {[%clk 0:01:24]}  Rf6 {[%clk 0:00:56]} 30. Rxf6 {[%clk 0:01:18]}  Bxf6 {[%clk 0:00:52]} 31. Bd1 {[%clk 0:01:13]}  Bd3+ {[%clk 0:00:51]} 32. Kg1 {[%clk 0:01:14]}  Rxe1+ {[%clk 0:00:49]} 33. Bxe1 {[%clk 0:01:14]}  Bb1 {[%clk 0:00:50]} 34. a3 {[%clk 0:01:09]}  Ba2 {[%clk 0:00:38]} 35. b4 {[%clk 0:01:08]}  cxb4 {[%clk 0:00:37]} 36. Bxb4 {[%clk 0:01:09]}  Bxc4 {[%clk 0:00:37]} 37. Bc5 {[%clk 0:01:09]}  b6 {[%clk 0:00:36]} 38. Bd6 {[%clk 0:01:09]}  Nb5 {[%clk 0:00:35]} 39. Bf4 {[%clk 0:01:04]}  Nxa3 {[%clk 0:00:32]} 40. Bb8 {[%clk 0:01:01]}  a5 {[%clk 0:00:28]} 41. Bc7 {[%clk 0:01:02]}  Bd4+ {[%clk 0:00:27]} 42. Kh1 {[%clk 0:01:01]}  Nb5 {[%clk 0:00:27]} 43. Bf4 {[%clk 0:00:58]}  Nc3 {[%clk 0:00:27]} 44. Bc2+ {[%clk 0:00:57]}  Kg7 {[%clk 0:00:27]} 45. g4 {[%clk 0:00:55]}  b5 {[%clk 0:00:27]} 46. h4 {[%clk 0:00:54]}  b4 {[%clk 0:00:27]} 47. g5 {[%clk 0:00:55]}  hxg5 {[%clk 0:00:26]} 48. Bxg5 {[%clk 0:00:54]}  b3 {[%clk 0:00:26]} 49. Bf5 {[%clk 0:00:54]}  a4 {[%clk 0:00:24]} 50. h5 {[%clk 0:00:55]}  a3 {[%clk 0:00:20]} 51. h6+ {[%clk 0:00:56]}  Kh8 {[%clk 0:00:21]} 52. Be7 {[%clk 0:00:53]}  a2 {[%clk 0:00:19]} 53. Kh2 {[%clk 0:00:54]}  a1=Q {[%clk 0:00:19]} 54. Bf6+ {[%clk 0:00:55]}  Bxf6 {[%clk 0:00:19]} 55. Kh3 {[%clk 0:00:55]}  Qh1+ {[%clk 0:00:18]} 56. Kg4 {[%clk 0:00:56]}  Qh4# {[%clk 0:00:18]} 0-1


[Site "https://www.chess.com"]

[Event "Titled Tuesday Blitz February 22 Early 2022"]
[White "Popadic, Dragan"]
[Black "Omariev, Maksim"]
[WhiteFideId "913650"]
[BlackFideId "4193423"]
[WhiteElo "2199"]
[BlackElo "2493"]
[Result "1-0"]
[Round "07"]
[TimeControl "180+1"]
[Date "2022.02.22"]
[WhiteClock "0:02:16"]
[BlackClock "0:00:43"]

1. e4 {[%clk 0:03:00]}  c5 {[%clk 0:02:59]} 2. Nc3 {[%clk 0:03:00]}  d6 {[%clk 0:02:59]} 3. f4 {[%clk 0:03:00]}  Nc6 {[%clk 0:02:34]} 4. Nf3 {[%clk 0:03:00]}  g6 {[%clk 0:02:34]} 5. Bc4 {[%clk 0:03:00]}  Bg7 {[%clk 0:02:35]} 6. d3 {[%clk 0:02:59]}  e6 {[%clk 0:02:35]} 7. O-O {[%clk 0:02:59]}  Nge7 {[%clk 0:02:35]} 8. Qe1 {[%clk 0:02:59]}  h6 {[%clk 0:02:34]} 9. Bb3 {[%clk 0:02:58]}  a6 {[%clk 0:02:29]} 10. a4 {[%clk 0:02:57]}  Bd7 {[%clk 0:02:13]} 11. Kh1 {[%clk 0:02:55]}  Nd4 {[%clk 0:01:56]} 12. Nxd4 {[%clk 0:02:54]}  cxd4 {[%clk 0:01:57]} 13. Ne2 {[%clk 0:02:54]}  b5 {[%clk 0:01:58]} 14. Qf2 {[%clk 0:02:41]}  bxa4 {[%clk 0:01:53]} 15. Bxa4 {[%clk 0:02:41]}  Bxa4 {[%clk 0:01:52]} 16. Rxa4 {[%clk 0:02:41]}  Qd7 {[%clk 0:01:44]} 17. b3 {[%clk 0:02:35]}  Nc6 {[%clk 0:01:28]} 18. Bb2 {[%clk 0:02:28]}  e5 {[%clk 0:01:25]} 19. fxe5 {[%clk 0:02:21]}  dxe5 {[%clk 0:01:26]} 20. Ba3 {[%clk 0:02:20]}  a5 {[%clk 0:01:04]} 21. Rc4 {[%clk 0:02:18]}  Rb8 {[%clk 0:00:58]} 22. Rxc6 {[%clk 0:02:17]}  Qc7 {[%clk 0:00:43]} 23. Rxc7 {[%clk 0:02:16]} 1-0


[Site "https://www.chess.com"]

[Event "Titled Tuesday Blitz February 22 Early 2022"]
[White "Potapova, Margarita"]
[Black "Estrada Nieto, Julian"]
[WhiteFideId "14126869"]
[BlackFideId "5101018"]
[WhiteElo "2209"]
[BlackElo "2246"]
[Result "1-0"]
[Round "07"]
[TimeControl "180+1"]
[Date "2022.02.22"]
[WhiteClock "0:00:25"]
[BlackClock "0:00:01"]

1. e4 {[%clk 0:03:00]}  e5 {[%clk 0:02:59]} 2. Nf3 {[%clk 0:03:00]}  Nc6 {[%clk 0:02:59]} 3. Nc3 {[%clk 0:03:01]}  Nf6 {[%clk 0:02:59]} 4. d4 {[%clk 0:03:01]}  exd4 {[%clk 0:02:59]} 5. Nxd4 {[%clk 0:03:02]}  Bb4 {[%clk 0:02:59]} 6. Nxc6 {[%clk 0:03:02]}  bxc6 {[%clk 0:02:59]} 7. Bd3 {[%clk 0:03:02]}  d5 {[%clk 0:03:00]} 8. exd5 {[%clk 0:03:03]}  O-O {[%clk 0:03:00]} 9. O-O {[%clk 0:03:04]}  cxd5 {[%clk 0:03:01]} 10. Bg5 {[%clk 0:03:03]}  c6 {[%clk 0:03:01]} 11. Qf3 {[%clk 0:03:03]}  h6 {[%clk 0:02:56]} 12. Bxf6 {[%clk 0:03:03]}  Qxf6 {[%clk 0:02:56]} 13. Qxf6 {[%clk 0:03:03]}  gxf6 {[%clk 0:02:56]} 14. Ne2 {[%clk 0:03:04]}  Bd7 {[%clk 0:02:52]} 15. Ng3 {[%clk 0:03:00]}  Rfe8 {[%clk 0:02:51]} 16. c3 {[%clk 0:02:57]}  Bf8 {[%clk 0:02:29]} 17. Rfe1 {[%clk 0:02:53]}  Rab8 {[%clk 0:02:24]} 18. b3 {[%clk 0:02:51]}  Re5 {[%clk 0:02:23]} 19. f4 {[%clk 0:02:48]}  Rxe1+ {[%clk 0:02:01]} 20. Rxe1 {[%clk 0:02:49]}  Bg4 {[%clk 0:01:46]} 21. h3 {[%clk 0:02:40]}  Bd7 {[%clk 0:01:41]} 22. Nh5 {[%clk 0:02:40]}  Bg7 {[%clk 0:01:31]} 23. Kf2 {[%clk 0:02:31]}  Re8 {[%clk 0:01:26]} 24. Rxe8+ {[%clk 0:02:27]}  Bxe8 {[%clk 0:01:26]} 25. Ke3 {[%clk 0:02:27]}  c5 {[%clk 0:01:21]} 26. b4 {[%clk 0:02:21]}  d4+ {[%clk 0:01:11]} 27. cxd4 {[%clk 0:02:15]}  cxb4 {[%clk 0:01:12]} 28. d5 {[%clk 0:02:16]}  Bh8 {[%clk 0:00:58]} 29. f5 {[%clk 0:02:15]}  Bg7 {[%clk 0:00:56]} 30. Kd4 {[%clk 0:02:08]}  Ba4 {[%clk 0:00:50]} 31. d6 {[%clk 0:02:01]}  Bf8 {[%clk 0:00:48]} 32. Kc5 {[%clk 0:01:42]}  b3 {[%clk 0:00:45]} 33. axb3 {[%clk 0:01:29]}  Bxb3 {[%clk 0:00:45]} 34. Kc6 {[%clk 0:01:27]}  Ba4+ {[%clk 0:00:43]} 35. Kc7 {[%clk 0:01:27]}  a5 {[%clk 0:00:36]} 36. d7 {[%clk 0:01:18]}  Be7 {[%clk 0:00:32]} 37. d8=Q+ {[%clk 0:01:16]}  Bxd8+ {[%clk 0:00:32]} 38. Kxd8 {[%clk 0:01:16]}  Bc6 {[%clk 0:00:32]} 39. g3 {[%clk 0:01:04]}  a4 {[%clk 0:00:29]} 40. Bc4 {[%clk 0:01:02]}  Kf8 {[%clk 0:00:20]} 41. Nxf6 {[%clk 0:01:00]}  Bg2 {[%clk 0:00:19]} 42. h4 {[%clk 0:00:58]}  a3 {[%clk 0:00:18]} 43. Ba2 {[%clk 0:00:54]}  Bh3 {[%clk 0:00:17]} 44. g4 {[%clk 0:00:52]}  Kg7 {[%clk 0:00:16]} 45. Nh5+ {[%clk 0:00:51]}  Kf8 {[%clk 0:00:16]} 46. Nf6 {[%clk 0:00:46]}  Kg7 {[%clk 0:00:15]} 47. Ne8+ {[%clk 0:00:45]}  Kf8 {[%clk 0:00:15]} 48. Nd6 {[%clk 0:00:30]}  Bxg4 {[%clk 0:00:14]} 49. Kc7 {[%clk 0:00:29]}  Ke7 {[%clk 0:00:09]} 50. Kc6 {[%clk 0:00:28]}  Kf6 {[%clk 0:00:07]} 51. Bb1 {[%clk 0:00:25]}  Bf3+ {[%clk 0:00:01]} 52. Kc5 {[%clk 0:00:25]}  Bd1 {[%clk 0:00:01]} 53. Ne8+ {[%clk 0:00:25]} 1-0


[Site "https://www.chess.com"]

[Event "Titled Tuesday Blitz February 22 Early 2022"]
[White "Putri, Regita Desyari"]
[Black "Bazarov, Konstantin"]
[WhiteFideId "7109083"]
[BlackFideId "4137000"]
[WhiteElo "1930"]
[BlackElo "2079"]
[Result "1/2-1/2"]
[Round "07"]
[TimeControl "180+1"]
[Date "2022.02.22"]
[WhiteClock "0:00:06"]
[BlackClock "0:00:07"]

1. d4 {[%clk 0:02:57]}  Nf6 {[%clk 0:02:59]} 2. c4 {[%clk 0:02:57]}  b6 {[%clk 0:02:59]} 3. Nf3 {[%clk 0:02:56]}  Bb7 {[%clk 0:02:59]} 4. g3 {[%clk 0:02:56]}  e6 {[%clk 0:02:59]} 5. Bg2 {[%clk 0:02:56]}  g6 {[%clk 0:02:59]} 6. O-O {[%clk 0:02:57]}  Bg7 {[%clk 0:03:00]} 7. Nc3 {[%clk 0:02:57]}  Ne4 {[%clk 0:03:00]} 8. Qd3 {[%clk 0:02:52]}  Nxc3 {[%clk 0:03:00]} 9. Qxc3 {[%clk 0:02:51]}  O-O {[%clk 0:02:58]} 10. Qd3 {[%clk 0:02:49]}  d6 {[%clk 0:02:56]} 11. e4 {[%clk 0:02:48]}  Nd7 {[%clk 0:02:55]} 12. Bg5 {[%clk 0:02:41]}  Qc8 {[%clk 0:02:54]} 13. Rfe1 {[%clk 0:02:37]}  e5 {[%clk 0:02:49]} 14. Rad1 {[%clk 0:02:21]}  exd4 {[%clk 0:02:43]} 15. Nxd4 {[%clk 0:02:22]}  Ne5 {[%clk 0:02:43]} 16. Qc2 {[%clk 0:02:21]}  Qg4 {[%clk 0:02:32]} 17. Be3 {[%clk 0:02:16]}  Rfe8 {[%clk 0:02:26]} 18. h3 {[%clk 0:02:15]}  Qd7 {[%clk 0:02:25]} 19. f4 {[%clk 0:02:12]}  Nc6 {[%clk 0:02:24]} 20. Nxc6 {[%clk 0:02:10]}  Qxc6 {[%clk 0:02:23]} 21. Bd4 {[%clk 0:02:09]}  Bxd4+ {[%clk 0:02:19]} 22. Rxd4 {[%clk 0:02:10]}  Qc5 {[%clk 0:02:19]} 23. Rd1 {[%clk 0:02:07]}  b5 {[%clk 0:02:03]} 24. Kh2 {[%clk 0:02:05]}  b4 {[%clk 0:01:58]} 25. R1d2 {[%clk 0:01:57]}  a5 {[%clk 0:01:41]} 26. f5 {[%clk 0:01:54]}  Qe5 {[%clk 0:01:37]} 27. Qd3 {[%clk 0:01:38]}  Re7 {[%clk 0:01:35]} 28. a3 {[%clk 0:01:14]}  Rae8 {[%clk 0:01:31]} 29. fxg6 {[%clk 0:01:06]}  hxg6 {[%clk 0:01:27]} 30. Re2 {[%clk 0:01:05]}  Kg7 {[%clk 0:01:23]} 31. axb4 {[%clk 0:01:05]}  axb4 {[%clk 0:01:22]} 32. Qd2 {[%clk 0:01:05]}  Rh8 {[%clk 0:01:17]} 33. Rd3 {[%clk 0:01:01]}  Qc5 {[%clk 0:01:12]} 34. Rb3 {[%clk 0:00:54]}  Qh5 {[%clk 0:00:53]} 35. Rxb4 {[%clk 0:00:37]}  Bc8 {[%clk 0:00:52]} 36. Rb8 {[%clk 0:00:24]}  Ree8 {[%clk 0:00:45]} 37. Kg1 {[%clk 0:00:17]}  Bxh3 {[%clk 0:00:43]} 38. Rxe8 {[%clk 0:00:14]}  Rxe8 {[%clk 0:00:42]} 39. Qd4+ {[%clk 0:00:13]}  f6 {[%clk 0:00:40]} 40. Qf2 {[%clk 0:00:09]}  Be6 {[%clk 0:00:33]} 41. b3 {[%clk 0:00:09]}  Ra8 {[%clk 0:00:28]} 42. Ra2 {[%clk 0:00:08]}  Rb8 {[%clk 0:00:27]} 43. Rb2 {[%clk 0:00:08]}  Qe5 {[%clk 0:00:25]} 44. Kh2 {[%clk 0:00:07]}  Bxc4 {[%clk 0:00:24]} 45. b4 {[%clk 0:00:05]}  Bf7 {[%clk 0:00:23]} 46. Kg1 {[%clk 0:00:02]}  Ra8 {[%clk 0:00:20]} 47. Bf1 {[%clk 0:00:01]}  Ra1 {[%clk 0:00:19]} 48. b5 {[%clk 0:00:01]}  Ra3 {[%clk 0:00:18]} 49. Rc2 {[%clk 0:00:01]}  Rxg3+ {[%clk 0:00:18]} 50. Bg2 {[%clk 0:00:02]}  Be6 {[%clk 0:00:14]} 51. Rxc7+ {[%clk 0:00:03]}  Kh6 {[%clk 0:00:14]} 52. Re7 {[%clk 0:00:02]}  Kg5 {[%clk 0:00:08]} 53. Qd2+ {[%clk 0:00:03]}  Kh4 {[%clk 0:00:07]} 54. Qf2 {[%clk 0:00:04]}  g5 {[%clk 0:00:07]} 55. Rh7+ {[%clk 0:00:04]}  Kg4 {[%clk 0:00:06]} 56. Qe2+ {[%clk 0:00:04]}  Kf4 {[%clk 0:00:06]} 57. Qf2+ {[%clk 0:00:05]}  Kg4 {[%clk 0:00:06]} 58. Qe2+ {[%clk 0:00:05]}  Kf4 {[%clk 0:00:06]} 59. Qf2+ {[%clk 0:00:06]}  Kg4 {[%clk 0:00:07]} 1/2-1/2


[Site "https://www.chess.com"]

[Event "Titled Tuesday Blitz February 22 Early 2022"]
[White "Richter, Nils"]
[Black "Manukian, Artak"]
[WhiteFideId "12990809"]
[BlackFideId "13301373"]
[WhiteElo "2289"]
[BlackElo "2484"]
[Result "0-1"]
[Round "07"]
[TimeControl "180+1"]
[Date "2022.02.22"]
[WhiteClock "0:00:20"]
[BlackClock "0:00:13"]

1. e4 {[%clk 0:03:00]}  c6 {[%clk 0:03:00]} 2. Nf3 {[%clk 0:02:58]}  d5 {[%clk 0:03:01]} 3. Nc3 {[%clk 0:02:59]}  dxe4 {[%clk 0:03:01]} 4. Nxe4 {[%clk 0:02:58]}  Nf6 {[%clk 0:03:02]} 5. Qe2 {[%clk 0:02:59]}  Nxe4 {[%clk 0:03:02]} 6. Qxe4 {[%clk 0:02:59]}  Nd7 {[%clk 0:03:02]} 7. Bc4 {[%clk 0:02:56]}  Nf6 {[%clk 0:03:01]} 8. Ne5 {[%clk 0:02:57]}  e6 {[%clk 0:03:02]} 9. Qe2 {[%clk 0:02:55]}  Qc7 {[%clk 0:02:46]} 10. O-O {[%clk 0:02:52]}  b5 {[%clk 0:02:46]} 11. Bd3 {[%clk 0:02:48]}  Bd6 {[%clk 0:02:44]} 12. Nxc6 {[%clk 0:02:44]}  Bxh2+ {[%clk 0:02:39]} 13. Kh1 {[%clk 0:02:42]}  O-O {[%clk 0:02:39]} 14. Bxb5 {[%clk 0:02:34]}  Bb7 {[%clk 0:02:37]} 15. d4 {[%clk 0:02:33]}  Rfc8 {[%clk 0:02:17]} 16. c3 {[%clk 0:02:29]}  a6 {[%clk 0:02:03]} 17. Ba4 {[%clk 0:02:28]}  Bd6 {[%clk 0:01:56]} 18. Ne5 {[%clk 0:02:22]}  Bd5 {[%clk 0:01:55]} 19. Bf4 {[%clk 0:02:15]}  Qb7 {[%clk 0:01:53]} 20. f3 {[%clk 0:02:13]}  Bxe5 {[%clk 0:01:48]} 21. Bxe5 {[%clk 0:02:06]}  Bc4 {[%clk 0:01:48]} 22. Qd2 {[%clk 0:02:01]}  Bxf1 {[%clk 0:01:46]} 23. Rxf1 {[%clk 0:02:02]}  Qe7 {[%clk 0:01:39]} 24. Qg5 {[%clk 0:01:55]}  Nd5 {[%clk 0:01:39]} 25. Qg3 {[%clk 0:01:49]}  f6 {[%clk 0:01:37]} 26. Bf4 {[%clk 0:01:48]}  Nxf4 {[%clk 0:01:35]} 27. Qxf4 {[%clk 0:01:49]}  e5 {[%clk 0:01:29]} 28. Bb3+ {[%clk 0:01:48]}  Kh8 {[%clk 0:01:29]} 29. Qe4 {[%clk 0:01:47]}  Qd6 {[%clk 0:01:16]} 30. d5 {[%clk 0:01:42]}  a5 {[%clk 0:01:14]} 31. Rd1 {[%clk 0:01:36]}  g6 {[%clk 0:01:11]} 32. Ba4 {[%clk 0:01:26]}  Rab8 {[%clk 0:01:08]} 33. Qc2 {[%clk 0:01:22]}  Rc5 {[%clk 0:00:49]} 34. Bc6 {[%clk 0:01:21]}  Rd8 {[%clk 0:00:49]} 35. Re1 {[%clk 0:01:18]}  Kg7 {[%clk 0:00:48]} 36. a3 {[%clk 0:01:12]}  Rc4 {[%clk 0:00:30]} 37. Qf2 {[%clk 0:01:04]}  Qc5 {[%clk 0:00:28]} 38. Qxc5 {[%clk 0:01:03]}  Rxc5 {[%clk 0:00:29]} 39. Kg1 {[%clk 0:00:56]}  Rb8 {[%clk 0:00:27]} 40. Re2 {[%clk 0:00:54]}  f5 {[%clk 0:00:21]} 41. Kf2 {[%clk 0:00:50]}  Kf6 {[%clk 0:00:21]} 42. Rc2 {[%clk 0:00:50]}  Ke7 {[%clk 0:00:17]} 43. Ke3 {[%clk 0:00:48]}  Rc4 {[%clk 0:00:17]} 44. Kd3 {[%clk 0:00:45]}  Rh4 {[%clk 0:00:17]} 45. b4 {[%clk 0:00:44]}  axb4 {[%clk 0:00:16]} 46. axb4 {[%clk 0:00:44]}  e4+ {[%clk 0:00:17]} 47. fxe4 {[%clk 0:00:43]}  fxe4+ {[%clk 0:00:17]} 48. Kd4 {[%clk 0:00:43]}  Kd6 {[%clk 0:00:16]} 49. Re2 {[%clk 0:00:37]}  Rf8 {[%clk 0:00:13]} 50. c4 {[%clk 0:00:34]}  Rff4 {[%clk 0:00:12]} 51. c5+ {[%clk 0:00:33]}  Kc7 {[%clk 0:00:12]} 52. Kc4 {[%clk 0:00:27]}  e3+ {[%clk 0:00:11]} 53. Kb5 {[%clk 0:00:28]}  Rxb4+ {[%clk 0:00:11]} 54. Ka5 {[%clk 0:00:28]}  Rbc4 {[%clk 0:00:11]} 55. Rb2 {[%clk 0:00:24]}  Rxc5+ {[%clk 0:00:11]} 56. Bb5 {[%clk 0:00:20]}  Rxd5 {[%clk 0:00:11]} 57. Rc2+ {[%clk 0:00:19]}  Kd6 {[%clk 0:00:10]} 58. Re2 {[%clk 0:00:20]}  Re4 {[%clk 0:00:10]} 59. Kb6 {[%clk 0:00:19]}  Rb4 {[%clk 0:00:09]} 60. Rxe3 {[%clk 0:00:19]}  Rbxb5+ {[%clk 0:00:10]} 61. Ka6 {[%clk 0:00:20]}  Ra5+ {[%clk 0:00:10]} 62. Kb6 {[%clk 0:00:21]}  Rab5+ {[%clk 0:00:10]} 63. Ka6 {[%clk 0:00:21]}  Re5 {[%clk 0:00:10]} 64. Rd3+ {[%clk 0:00:20]}  Rbd5 {[%clk 0:00:11]} 65. Rb3 {[%clk 0:00:20]}  Ke6 {[%clk 0:00:10]} 66. Rb7 {[%clk 0:00:19]}  Rd6+ {[%clk 0:00:10]} 67. Ka7 {[%clk 0:00:19]}  Kf6 {[%clk 0:00:11]} 68. Rxh7 {[%clk 0:00:18]}  Re7+ {[%clk 0:00:11]} 69. Rxe7 {[%clk 0:00:19]}  Kxe7 {[%clk 0:00:12]} 70. Kb7 {[%clk 0:00:19]}  Rd2 {[%clk 0:00:13]} 71. Kc7 {[%clk 0:00:20]}  Rxg2 {[%clk 0:00:13]} 0-1


[Site "https://www.chess.com"]